bitfinex-derivatives/quotes_SOLF0:USTF0_20250419
["timestamp","ask_amount","ask_price","bid_price","bid_amount"]
[1745059706328,5.74380701,139.12,139.09,25.46]
[1745059706827,5.74380701,139.1,139.09,25.46]
[1745059707326,5.74380701,139.1,139.06,25.44]
[1745059707825,4.95341988,139.09,139.06,25.44]
[1745059708024,4.95341988,139.08,139.06,25.44]
[1745059708225,4.95341988,139.07,139.06,25.44]
[1745059715535,4.95036932,139.07,139.06,25.44]
[1745059717533,5.74380701,139.12,139.06,25.44]
[1745059717936,5.74380701,139.1,139.06,25.44]
[1745059718635,7.1902,139.09,139.06,25.44]
[1745059720636,12.93370701,139.1,139.06,25.44]
[1745059728742,7.1902,139.09,139.06,25.44]
[1745059729435,4.82556848,139.08,139.06,25.44]
[1745059729641,4.82556848,139.07,139.06,25.44]
[1745059730345,4.82554724,139.07,139.06,25.44]
[1745059736657,4.82554724,139.07,139.03,25.46]
[1745059736856,4.82554724,139.06,139.03,25.46]
[1745059737153,4.82554724,139.05,139.03,25.46]
[1745059737355,4.82554724,139.04,139.03,25.46]
[1745059739052,5.74380701,139.06,139.03,25.46]
[1745059739256,4.81888436,139.05,139.03,25.46]
[1745059739456,5.74380701,139.06,139.03,25.46]
[1745059739658,4.81862459,139.05,139.03,25.46]
[1745059739852,5.74380701,139.06,139.03,25.46]
[1745059740055,4.81862327,139.05,139.03,25.46]
[1745059740351,5.74380701,139.06,139.04,7.1924]
[1745059740551,4.82089987,139.05,139.04,7.1924]
[1745059740754,5.74380701,139.06,139.04,7.1924]
[1745059740961,4.82006642,139.05,139.04,7.1924]
[1745059742464,4.82006642,139.05,139.03,32.6529]
[1745059742664,4.82006642,139.04,139.03,7.1929]
[1745059751173,4.81699502,139.04,139.0,600.34380701]
[1745059751372,4.81699502,139.03,139.0,600.34380701]
[1745059751679,7.1914,139.07,139.0,600.34380701]
[1745059751680,12.93520701,139.07,139.02,5.74380701]
[1745059751872,4.8153655,139.06,139.02,5.74380701]
[1745059752071,4.8153655,139.05,139.02,5.74380701]
[1745059752272,4.8153655,139.04,139.02,5.74380701]
[1745059752473,4.8153655,139.03,139.02,5.74380701]
[1745059754574,4.8153655,139.03,139.01,0.04925055]
[1745059754775,0.0492903,139.04,139.01,0.04925055]
[1745059754975,4.8148006,139.03,139.01,0.04925055]
[1745059755274,0.0492903,139.04,139.01,0.04925055]
[1745059755471,4.81457684,139.03,139.01,0.04925055]
[1745059755672,0.0492903,139.04,139.01,0.04925055]
[1745059755977,4.81457684,139.03,139.01,0.04925055]
[1745059756172,0.0492903,139.04,139.01,0.04925055]
[1745059756473,4.81466586,139.03,139.01,0.04925055]
[1745059756672,0.0492903,139.04,139.01,0.04925055]
[1745059756972,4.81429321,139.03,139.01,0.04925055]
[1745059757172,0.0492903,139.04,139.01,0.04925055]
[1745059757373,4.81427982,139.03,139.01,0.04925055]
[1745059757574,0.0492903,139.04,139.01,0.04925055]
[1745059757774,4.81410499,139.03,139.01,0.04925055]
[1745059757974,0.0492903,139.04,139.01,0.04925055]
[1745059758177,4.81423595,139.03,139.01,0.04925055]
[1745059758376,0.0492903,139.04,139.01,0.04925055]
[1745059758572,4.81423905,139.03,139.01,0.04925055]
[1745059758778,0.0492903,139.04,139.01,0.04925055]
[1745059758978,4.81423902,139.03,139.01,0.04925055]
[1745059759179,0.0492903,139.04,139.01,0.04925055]
[1745059759378,4.81436591,139.03,139.01,0.04925055]
[1745059759671,0.0492903,139.04,139.01,0.04925055]
[1745059759872,4.81429379,139.03,139.01,0.04925055]
[1745059760081,0.0492903,139.04,139.01,0.04925055]
[1745059760278,4.8142605,139.03,139.01,0.04925055]
[1745059760480,0.0492903,139.04,139.01,0.04925055]
[1745059760680,4.81426008,139.03,139.01,0.04925055]
[1745059760880,0.0492903,139.04,139.01,0.04925055]
[1745059761080,4.81490751,139.03,139.01,0.04925055]
[1745059761382,0.0492903,139.04,139.01,0.04925055]
[1745059761684,4.81503765,139.03,139.01,0.04925055]
[1745059761982,0.0492903,139.04,139.01,0.04925055]
[1745059762281,4.81467131,139.03,139.01,0.04925055]
[1745059762583,0.0492903,139.04,139.01,0.04925055]
[1745059762784,4.81274359,139.03,139.01,0.04925055]
[1745059762985,0.0492903,139.04,139.01,0.04925055]
[1745059763187,4.81177483,139.03,139.01,0.04925055]
[1745059763383,0.0492903,139.04,139.01,0.04925055]
[1745059763586,4.812498,139.03,139.01,0.04925055]
[1745059763784,0.0492903,139.04,139.01,0.04925055]
[1745059764083,4.81266113,139.03,139.01,0.04925055]
[1745059764286,4.81188075,139.02,139.01,0.04925055]
[1745059771292,4.80864992,139.02,139.01,0.04925055]
[1745059774694,4.80962848,139.02,139.01,0.04925055]
[1745059776496,4.81047412,139.02,139.01,0.04925055]
[1745059777299,12.00417412,139.02,139.01,0.04925055]
[1745059790501,12.00942581,139.02,139.01,0.04925055]
[1745059800102,7.1937,139.02,139.01,0.04925055]
[1745059800406,12.00944786,139.02,139.01,0.04925055]
[1745059808617,12.01629414,139.02,139.01,0.04925055]
[1745059812222,12.01550218,139.02,139.01,0.04925055]
[1745059815122,4.82180218,139.02,139.01,0.04925055]
[1745059815426,4.82238349,139.02,139.01,0.04925055]
[1745059816923,4.82238349,139.02,139.01,25.48925055]
[1745059821132,0.0492903,139.04,139.01,25.48925055]
[1745059821633,0.0492903,139.04,139.02,5.74380701]
[1745059821836,0.0492903,139.04,139.02,7.70260701]
[1745059822736,0.0492903,139.04,139.03,25.44]
[1745059824335,25.44,139.07,139.01,0.04925055]
[1745059824628,3.8688,139.06,138.96,5.74380701]
[1745059824835,27.4548,139.07,138.98,5.74380701]
[1745059825034,5.74380701,139.03,138.97,1.8769]
[1745059825235,12.93740701,139.03,138.98,25.44]
[1745059829239,12.93740701,139.03,138.99,0.04622464]
[1745059829437,0.05402164,139.02,138.99,0.04622464]
[1745059833238,4.68539111,139.01,138.99,0.04622464]
[1745059833442,4.68539111,139.0,138.99,0.04622464]
[1745059837144,11.88019111,139.0,138.99,0.04622464]
[1745059842748,17.62399812,139.0,138.99,0.04622464]
[1745059844853,17.62108375,139.0,138.99,0.04622464]
[1745059850758,17.6202362,139.0,138.99,0.04622464]
[1745059850956,12.93860701,139.0,138.99,0.04622464]
[1745059851356,17.61984038,139.0,138.99,0.04622464]
[1745059851559,7.1961,138.98,138.93,5.74380701]
[1745059851760,4.68060134,138.97,138.94,25.44]
[1745059851957,10.42372196,138.96,138.94,25.44]
[1745059852257,4.67868883,138.95,138.94,25.44]
[1745059856957,0.05518852,138.96,138.94,31.18380701]
[1745059862869,0.05518852,138.96,138.94,25.44]
[1745059863064,5.79899553,138.96,138.94,25.44]
[1745059863465,12.99619553,138.96,138.94,25.44]
[1745059863967,4.67497141,138.95,138.94,25.44]
[1745059866959,12.99619553,138.96,138.94,25.44]
[1745059867159,4.67580895,138.95,138.94,25.44]
[1745059872372,4.68033708,138.95,138.94,25.44]
[1745059876773,4.68033708,138.95,138.93,0.05396036]
[1745059876974,4.68033708,138.94,138.93,0.05396036]
[1745059877272,10.42414409,138.94,138.93,0.05396036]
[1745059877472,17.62204409,138.94,138.93,0.05396036]
[1745059878874,10.42414409,138.94,138.93,0.05396036]
[1745059879674,5.74380701,138.94,138.93,0.05396036]
[1745059879973,10.425932,138.94,138.93,0.05396036]
[1745059881974,17.623832,138.94,138.93,0.05396036]
[1745059885477,10.425932,138.94,138.93,0.05396036]
[1745059885977,4.68212499,138.94,138.93,0.05396036]
[1745059886179,4.68491643,138.94,138.93,0.05396036]
[1745059886479,4.68491643,138.94,138.93,7.25236036]
[1745059890380,4.68491643,138.94,138.93,12.99616737]
[1745059890683,0.05518852,138.96,138.94,7.1976]
[1745059890886,4.6894551,138.95,138.94,7.1976]
[1745059891281,4.6894551,138.95,138.93,12.99586737]
[1745059891476,4.6894551,138.94,138.93,12.99586737]
[1745059893283,4.6894551,138.94,138.93,38.43586737]
[1745059894290,4.69374741,138.94,138.93,38.43586737]
[1745059896091,0.05518852,138.96,138.94,7.1975]
[1745059896288,4.69543109,138.95,138.94,7.1975]
[1745059899089,4.69543109,138.95,138.93,25.49396036]
[1745059899294,10.4392381,138.94,138.93,0.05396036]
[1745059899589,7.199,138.92,138.87,25.44]
[1745059899793,10.43465707,138.91,138.87,25.44]
[1745059899993,4.69085006,138.9,138.87,25.44]
[1745059900193,4.69085006,138.89,138.87,25.44]
[1745059900396,4.69085006,138.88,138.87,25.44]
[1745059903597,0.05461044,138.89,138.87,25.44]
[1745059908199,5.52935973,138.88,138.87,25.44]
[1745059910602,0.05461044,138.89,138.87,25.44]
[1745059912402,0.05461044,138.89,138.87,31.18380701]
[1745059916706,0.05461044,138.89,138.87,25.44]
[1745059917007,0.05461044,138.89,138.86,0.04977442]
[1745059917207,7.25531044,138.89,138.86,0.04977442]
[1745059917508,12.99911745,138.89,138.86,0.04977442]
[1745059918308,7.2011,138.88,138.86,0.04977442]
[1745059918608,5.79841745,138.89,138.86,0.04977442]
[1745059918805,35.20101745,138.89,138.86,0.04977442]
[1745059919005,7.2013,138.88,138.86,0.04977442]
[1745059919205,5.74380701,138.87,138.86,0.04977442]
[1745059920509,35.20101745,138.89,138.86,0.04977442]
[1745059920707,27.53811044,138.89,138.86,0.04977442]
[1745059920907,2.09811044,138.89,138.86,0.04977442]
[1745059921106,0.05461044,138.89,138.86,0.04977442]
[1745059921508,0.05461044,138.89,138.86,5.79358143]
[1745059922812,3.9598,138.95,138.88,5.74380701]
[1745059923111,5.74380701,138.98,138.92,5.74380701]
[1745059923411,12.93970701,138.98,138.92,5.74380701]
[1745059924105,0.04983519,138.96,138.92,5.74380701]
[1745059925408,0.04983519,138.96,138.93,0.04927875]
[1745059931518,7.24673519,138.96,138.93,0.04927875]
[1745059931713,12.9905422,138.96,138.93,0.04927875]
[1745059937416,0.04983519,138.96,138.93,0.04927875]
[1745059938617,7.24683519,138.96,138.93,0.04927875]
[1745059939222,0.04983519,138.96,138.93,5.79308576]
[1745059940818,4.84585369,138.95,138.93,5.79308576]
[1745059941117,4.84585369,138.94,138.93,5.79308576]
[1745059945222,0.04983519,138.96,138.93,5.79308576]
[1745059945423,4.8464651,138.95,138.93,5.79308576]
[1745059945723,0.04983519,138.96,138.93,5.79308576]
[1745059945922,4.8462737,138.95,138.93,5.79308576]
[1745059946223,0.04983519,138.96,138.93,5.79308576]
[1745059946520,4.84430962,138.95,138.93,5.79308576]
[1745059946723,0.04983519,138.96,138.93,5.79308576]
[1745059946919,4.84430886,138.95,138.93,5.79308576]
[1745059947121,0.04983519,138.96,138.93,5.79308576]
[1745059947415,4.84416633,138.95,138.93,5.79308576]
[1745059947621,0.04983519,138.96,138.93,5.79308576]
[1745059947923,4.84339463,138.95,138.93,5.79308576]
[1745059948123,0.04983519,138.96,138.93,5.79308576]
[1745059948423,4.84306781,138.95,138.93,5.79308576]
[1745059948722,0.04983519,138.96,138.93,5.79308576]
[1745059948923,4.84303527,138.95,138.93,5.79308576]
[1745059949221,0.04983519,138.96,138.93,5.79308576]
[1745059949421,4.84313895,138.95,138.93,5.79308576]
[1745059949720,0.04983519,138.96,138.93,5.79308576]
[1745059949922,4.84309211,138.95,138.93,5.79308576]
[1745059950113,0.04983519,138.96,138.93,5.79308576]
[1745059950316,4.84311839,138.95,138.93,5.79308576]
[1745059950517,0.04983519,138.96,138.93,5.79308576]
[1745059950719,4.84399311,138.95,138.93,5.79308576]
[1745059950914,0.04983519,138.96,138.93,5.79308576]
[1745059951117,4.84403889,138.95,138.93,5.79308576]
[1745059951316,0.04983519,138.96,138.93,5.79308576]
[1745059951517,4.84570514,138.95,138.93,5.79308576]
[1745059951720,0.04983519,138.96,138.93,5.79308576]
[1745059951920,4.84516727,138.95,138.93,5.79308576]
[1745059952121,0.04983519,138.96,138.93,5.79308576]
[1745059952319,4.84748527,138.95,138.93,5.79308576]
[1745059952517,0.04983519,138.96,138.93,5.79308576]
[1745059952723,4.84747429,138.95,138.93,5.79308576]
[1745059952926,0.04983519,138.96,138.93,5.79308576]
[1745059953229,4.84674645,138.95,138.93,5.79308576]
[1745059953420,4.84674645,138.94,138.93,5.79308576]
[1745059955530,4.86895113,138.94,138.93,5.79308576]
[1745059957231,4.86895113,138.94,138.93,31.21308576]
[1745059960936,4.86659202,138.94,138.93,31.21308576]
[1745059961836,4.86659202,138.94,138.93,25.46927875]
[1745059962834,4.86381151,138.94,138.93,25.46927875]
[1745059963936,4.86381151,138.94,138.93,0.04927875]
[1745059964538,7.24683519,138.96,138.93,0.04927875]
[1745059964730,4.86057725,138.95,138.93,0.04927875]
[1745059964929,4.86057725,138.94,138.93,0.04927875]
[1745059965740,4.86057725,138.94,138.87,600.98380701]
[1745059966041,5.74380701,138.92,138.87,600.98380701]
[1745059966239,4.86057725,138.91,138.87,600.98380701]
[1745059966435,4.8538219,138.9,138.87,600.98380701]
[1745059966641,4.8538219,138.89,138.87,31.16380701]
[1745059966939,4.8538219,138.88,138.87,31.16380701]
[1745059968940,4.84790296,138.88,138.87,31.16380701]
[1745059970041,0.05303898,138.9,138.87,31.16380701]
[1745059970244,4.84562237,138.89,138.87,31.16380701]
[1745059970443,0.05303898,138.9,138.87,31.16380701]
[1745059970635,4.84379102,138.89,138.87,31.16380701]
[1745059970836,0.05303898,138.9,138.87,31.16380701]
[1745059971045,4.8438373,138.89,138.87,31.16380701]
[1745059971343,0.05303898,138.9,138.87,31.16380701]
[1745059971643,4.84270992,138.89,138.87,31.16380701]
[1745059971842,0.05303898,138.9,138.87,31.16380701]
[1745059972042,4.84237229,138.89,138.87,31.16380701]
[1745059972242,0.05303898,138.9,138.87,31.16380701]
[1745059972442,0.05303898,138.9,138.89,5.74380701]
[1745059974746,0.05303898,138.9,138.89,31.16380701]
[1745059976542,0.05303898,138.9,138.89,25.42]
[1745059976744,4.89622696,138.9,138.89,25.42]
[1745059976947,4.89622696,138.9,138.87,5.74380701]
[1745059977142,0.05303898,138.9,138.87,5.74380701]
[1745059984651,0.05303898,138.9,138.87,31.16380701]
[1745059989560,0.05303898,138.9,138.89,5.74380701]
[1745059990656,0.05303898,138.9,138.89,31.16380701]
[1745059992363,569.92,139.0,138.89,31.16380701]
[1745059992564,16.25946374,138.99,138.93,5.74380701]
[1745059992764,4.84065673,138.98,138.93,5.74380701]
[1745059992961,4.84065673,138.97,138.93,5.74380701]
[1745059993166,4.84065673,138.96,138.93,5.74380701]
[1745059993363,4.84065673,138.95,138.94,7.1979]
[1745059999068,4.8441591,138.95,138.94,7.1979]
[1745060006273,4.84542899,138.95,138.93,5.79909008]
[1745060006481,4.84542899,138.94,138.93,5.79909008]
[1745060008281,4.84463399,138.94,138.93,5.79909008]
[1745060008580,0.05152318,138.96,138.93,5.79909008]
[1745060008780,4.84466652,138.95,138.93,0.05528307]
[1745060009079,0.05152318,138.96,138.95,5.74380701]
[1745060009280,4.89620564,138.96,138.95,5.74380701]
[1745060011683,4.89448001,138.96,138.95,5.74380701]
[1745060015684,4.89448001,138.96,138.93,5.79909008]
[1745060015881,4.84295683,138.95,138.93,5.79909008]
[1745060016081,4.84119115,138.94,138.93,5.79909008]
[1745060020785,4.84279195,138.94,138.93,5.79909008]
[1745060022587,4.84299362,138.94,138.93,5.79909008]
[1745060023184,0.05152318,138.96,138.93,5.79909008]
[1745060023484,4.84377471,138.95,138.93,0.05528307]
[1745060023686,0.05152318,138.96,138.93,0.05528307]
[1745060023884,4.84376907,138.95,138.93,0.05528307]
[1745060024188,0.05152318,138.96,138.93,0.05528307]
[1745060024382,4.84451874,138.95,138.93,0.05528307]
[1745060024684,0.05152318,138.96,138.94,5.74380701]
[1745060028786,4.84600363,138.95,138.94,5.74380701]
[1745060031888,4.84834114,138.95,138.94,5.74380701]
[1745060032289,4.84838741,138.95,138.93,0.05528307]
[1745060032487,4.84838741,138.94,138.93,0.05528307]
[1745060035389,4.85387751,138.94,138.93,0.05528307]
[1745060038694,4.85846002,138.94,138.93,0.05528307]
[1745060038991,4.85828901,138.94,138.93,0.05528307]
[1745060040693,4.85828901,138.94,138.9,5.74380701]
[1745060040885,4.85828901,138.93,138.9,5.74380701]
[1745060041082,4.85828901,138.92,138.9,5.74380701]
[1745060041286,4.85828901,138.91,138.9,5.74380701]
[1745060042095,4.85258196,138.91,138.9,5.74380701]
[1745060043898,4.85228238,138.91,138.89,0.04935249]
[1745060044195,4.85228238,138.9,138.89,0.04935249]
[1745060047993,0.04714684,138.92,138.89,0.04935249]
[1745060048198,4.84894165,138.91,138.9,5.74380701]
[1745060053506,0.04714684,138.92,138.9,5.74380701]
[1745060053704,0.04714684,138.92,138.91,25.4]
[1745060054004,4.89406075,138.92,138.91,25.4]
[1745060054604,0.04714684,138.92,138.91,25.4]
[1745060058207,7.196,138.98,138.91,25.4]
[1745060058504,4.85131888,138.97,138.93,5.74380701]
[1745060058807,4.85131888,138.96,138.94,25.4]
[1745060059008,4.85131888,138.95,138.94,25.4]
[1745060061910,4.85294004,138.95,138.94,25.4]
[1745060069216,4.84938469,138.95,138.94,25.4]
[1745060079935,4.84612881,138.95,138.94,25.4]
[1745060086348,4.84113193,138.95,138.94,25.4]
[1745060087542,0.04572775,138.96,138.94,25.4]
[1745060087741,0.04572775,138.96,138.95,5.74380701]
[1745060087942,4.88774472,138.96,138.95,5.74380701]
[1745060090845,4.89005924,138.96,138.95,5.74380701]
[1745060091144,4.89029569,138.96,138.95,5.74380701]
[1745060092341,4.89228365,138.96,138.95,5.74380701]
[1745060096446,4.89698438,138.96,138.95,5.74380701]
[1745060100048,4.90174763,138.96,138.95,5.74380701]
[1745060101350,4.9035049,138.96,138.95,5.74380701]
[1745060105747,4.9035049,138.96,138.9,25.38]
[1745060106050,17.79928416,138.95,138.9,25.38]
[1745060106251,4.85777715,138.94,138.9,25.38]
[1745060106451,4.85777715,138.93,138.9,31.12380701]
[1745060106649,4.85289343,138.92,138.89,595.16]
[1745060106851,4.85289343,138.91,138.89,25.38]
[1745060107049,4.85289343,138.9,138.89,25.38]
[1745060108254,4.85289343,138.9,138.89,32.5802]
[1745060114361,0.05511103,138.92,138.9,7.1995]
[1745060114560,4.83053037,138.91,138.9,7.1995]
[1745060120662,10.57433738,138.91,138.89,7.2002]
[1745060120861,4.83053037,138.9,138.89,7.2002]
[1745060121164,4.82395382,138.9,138.86,31.12380701]
[1745060121364,4.82395382,138.89,138.86,31.12380701]
[1745060121662,4.82147706,138.88,138.86,25.38]
[1745060121862,4.82112934,138.87,138.83,31.12380701]
[1745060122057,0.04915803,138.88,138.83,31.12380701]
[1745060122263,4.8202655,138.87,138.83,31.12380701]
[1745060122463,7.25045803,138.88,138.83,31.12380701]
[1745060122666,4.81694274,138.87,138.83,31.12380701]
[1745060122862,4.81694274,138.86,138.83,31.12380701]
[1745060123064,7.25045803,138.88,138.83,31.12380701]
[1745060123259,4.81622149,138.87,138.83,31.12380701]
[1745060123459,0.04915803,138.88,138.85,5.74380701]
[1745060123765,4.8140547,138.87,138.85,5.74380701]
[1745060123964,0.04915803,138.88,138.85,5.74380701]
[1745060124566,0.04915803,138.88,138.85,5.78936102]
[1745060137066,7.25015803,138.88,138.85,5.78936102]
[1745060137270,0.04915803,138.88,138.85,5.78936102]
[1745060141377,7.25015803,138.88,138.85,0.04555401]
[1745060142578,0.04915803,138.88,138.85,0.04555401]
[1745060143379,7.25025803,138.88,138.85,0.04555401]
[1745060144178,4.80096122,138.87,138.85,0.04555401]
[1745060144374,7.25025803,138.88,138.85,0.04555401]
[1745060144575,4.80099093,138.87,138.85,0.04555401]
[1745060144771,7.25025803,138.88,138.85,0.04555401]
[1745060144972,4.80105098,138.87,138.85,0.04555401]
[1745060145182,7.25025803,138.88,138.85,0.04555401]
[1745060145383,4.80050616,138.87,138.85,0.04555401]
[1745060145582,7.25025803,138.88,138.85,0.04555401]
[1745060145783,4.80062405,138.87,138.85,0.04555401]
[1745060145983,0.04915803,138.88,138.85,0.04555401]
[1745060146284,4.80062202,138.87,138.85,0.04555401]
[1745060146483,7.25025803,138.88,138.85,0.04555401]
[1745060146783,4.80078199,138.87,138.85,0.04555401]
[1745060146983,7.25025803,138.88,138.85,0.04555401]
[1745060147283,4.80238164,138.87,138.85,0.04555401]
[1745060147481,7.25025803,138.88,138.85,0.04555401]
[1745060147685,4.80434392,138.87,138.85,0.04555401]
[1745060147883,7.25025803,138.88,138.85,0.04555401]
[1745060148085,4.80574171,138.87,138.85,0.04555401]
[1745060148285,7.25025803,138.88,138.85,0.04555401]
[1745060148489,4.80846286,138.87,138.85,0.04555401]
[1745060148681,7.25025803,138.88,138.85,0.04555401]
[1745060148986,4.80907166,138.87,138.85,0.04555401]
[1745060149189,7.25025803,138.88,138.85,0.04555401]
[1745060149386,4.81526016,138.87,138.85,5.78936102]
[1745060149584,4.81526016,138.86,138.85,5.78936102]
[1745060152489,4.81934536,138.86,138.85,5.78936102]
[1745060152981,7.2016,138.87,138.85,0.04555401]
[1745060153387,7.25035803,138.88,138.85,0.04555401]
[1745060153688,4.81891053,138.87,138.85,0.04555401]
[1745060153891,4.81891053,138.86,138.85,0.04555401]
[1745060154882,4.8193616,138.86,138.85,0.04555401]
[1745060160396,0.04915803,138.88,138.85,0.04555401]
[1745060160592,35.08850701,138.95,138.87,5.74380701]
[1745060160799,35.08850701,138.95,138.9,5.74380701]
[1745060161195,35.08850701,138.95,138.89,31.12380701]
[1745060161396,5.74380701,138.93,138.89,31.12380701]
[1745060161798,7.1989,138.92,138.89,31.12380701]
[1745060162494,5.74380701,138.93,138.89,31.12380701]
[1745060162799,7.1995,138.91,138.87,5.74380701]
[1745060162999,7.1995,138.91,138.9,0.04807668]
[1745060165301,12.94330701,138.91,138.9,0.04807668]
[1745060168598,5.74380701,138.91,138.86,25.38]
[1745060170307,7.2009,138.89,138.86,25.38]
[1745060170608,5.74380701,138.89,138.85,5.74380701]
[1745060171007,7.25232511,138.88,138.85,5.74380701]
[1745060171808,0.05092511,138.88,138.85,5.74380701]
[1745060172512,4.71516559,138.87,138.85,5.74380701]
[1745060172711,4.71516559,138.86,138.85,5.74380701]
[1745060174111,4.71473451,138.86,138.85,5.74380701]
[1745060175910,4.7136875,138.86,138.85,5.74380701]
[1745060181317,0.05092511,138.88,138.85,5.74380701]
[1745060181513,4.715512,138.87,138.85,5.74380701]
[1745060181808,4.715512,138.86,138.85,5.74380701]
[1745060182316,4.715512,138.86,138.83,25.38]
[1745060182515,4.715512,138.85,138.83,25.38]
[1745060182716,0.05092511,138.88,138.85,5.74380701]
[1745060182917,4.71507716,138.87,138.85,5.74380701]
[1745060183117,4.71507716,138.86,138.85,5.74380701]
[1745060186417,4.71530304,138.86,138.85,5.74380701]
[1745060188618,4.71718302,138.86,138.85,5.74380701]
[1745060190317,0.05092511,138.88,138.85,5.74380701]
[1745060190618,4.71737891,138.87,138.85,5.74380701]
[1745060190813,4.71737891,138.86,138.85,5.74380701]
[1745060192423,4.71737891,138.86,138.85,31.12380701]
[1745060193922,4.71737891,138.86,138.84,0.04635342]
[1745060194121,4.71644083,138.85,138.84,0.04635342]
[1745060196823,4.71644083,138.85,138.84,5.79016043]
[1745060197023,0.05092511,138.88,138.84,5.79016043]
[1745060197218,0.05092511,138.88,138.87,5.74380701]
[1745060197827,0.05092511,138.88,138.87,12.94530701]
[1745060203628,0.05092511,138.88,138.87,7.2015]
[1745060208941,4.65361471,138.88,138.87,7.2015]
[1745060213239,4.65361471,138.88,138.85,31.10380701]
[1745060213438,4.6026896,138.87,138.85,25.36]
[1745060213638,4.6026896,138.86,138.85,25.36]
[1745060213938,4.60107962,138.86,138.85,25.36]
[1745060214240,7.25202511,138.88,138.85,25.36]
[1745060214438,4.60092693,138.87,138.85,25.36]
[1745060214642,7.25202511,138.88,138.85,25.36]
[1745060215240,4.60088035,138.87,138.85,25.36]
[1745060215538,4.60088611,138.86,138.85,25.36]
[1745060217139,4.60118958,138.86,138.85,25.36]
[1745060218632,4.60118958,138.86,138.84,0.04635342]
[1745060218834,7.2015,138.87,138.84,0.04635342]
[1745060218835,4.60118958,138.85,138.84,0.04635342]
[1745060220141,10.34499659,138.85,138.68,247.09210074]
[1745060220346,5.74380701,138.79,138.73,5.74380701]
[1745060220746,4.5938,138.78,138.73,31.10380701]
[1745060220939,4.5938,138.77,138.75,5.74380701]
[1745060221245,9.1695,138.81,138.76,5.74380701]
[1745060221544,4.58593838,138.8,138.78,5.74380701]
[1745060221744,4.58593838,138.79,138.78,31.10380701]
[1745060222945,1.8862,138.87,138.78,31.10380701]
[1745060223138,1.8862,138.87,138.82,5.74380701]
[1745060223342,1.8862,138.87,138.84,5.74380701]
[1745060223644,5.74380701,138.9,138.84,5.74380701]
[1745060224143,0.05248788,138.88,138.84,5.74380701]
[1745060224346,0.05248788,138.88,138.86,5.74380701]
[1745060224538,0.05248788,138.88,138.83,25.38]
[1745060224741,0.05248788,138.88,138.85,5.74380701]
[1745060228649,0.05248788,138.88,138.87,5.74380701]
[1745060234455,1.8921,138.94,138.87,5.74380701]
[1745060234655,1.8921,138.94,138.89,5.74380701]
[1745060234855,4.95965687,138.93,138.89,31.18380701]
[1745060235154,4.95965687,138.92,138.89,31.18380701]
[1745060235354,4.95965687,138.91,138.89,31.18380701]
[1745060235554,4.95965687,138.9,138.89,31.18380701]
[1745060238253,4.95741211,138.9,138.89,31.18380701]
[1745060239159,7.1974,138.95,138.89,31.18380701]
[1745060239354,4.95628802,138.94,138.89,31.18380701]
[1745060239558,4.95628802,138.93,138.89,31.18380701]
[1745060239855,4.95628802,138.92,138.89,31.18380701]
[1745060240158,12.94080701,138.96,138.91,5.74380701]
[1745060240354,4.9558321,138.95,138.91,5.74380701]
[1745060240552,4.9558321,138.94,138.91,5.74380701]
[1745060240755,4.9558321,138.93,138.91,5.74380701]
[1745060241050,4.9558321,138.92,138.91,5.74380701]
[1745060243662,4.95548504,138.92,138.91,5.74380701]
[1745060249065,4.95043731,138.92,138.91,5.74380701]
[1745060250665,12.94100701,138.96,138.91,5.74380701]
[1745060250866,4.94885687,138.95,138.91,5.74380701]
[1745060251065,0.05417751,138.93,138.91,5.74380701]
[1745060251365,0.05417751,138.93,138.92,0.05305556]
[1745060251669,5.00240508,138.93,138.92,0.05305556]
[1745060252764,5.00354598,138.93,138.92,0.05305556]
[1745060254263,5.00354598,138.93,138.92,25.47305556]
[1745060256565,29.3302,138.98,138.92,25.47305556]
[1745060256766,4.94836491,138.97,138.94,5.74380701]
[1745060256971,4.94836491,138.96,138.94,5.74380701]
[1745060257169,4.94836491,138.95,138.94,5.74380701]
[1745060257467,3.8902,138.98,138.94,5.74380701]
[1745060257668,4.94717588,138.97,138.94,5.74380701]
[1745060257965,4.94717588,138.96,138.94,5.74380701]
[1745060258168,11.0861,138.98,138.94,5.74380701]
[1745060258367,4.94668013,138.97,138.94,5.74380701]
[1745060258570,4.94668013,138.96,138.94,5.74380701]
[1745060258762,4.94668013,138.95,138.94,5.74380701]
[1745060259065,11.0862,138.98,138.94,5.74380701]
[1745060259367,4.94617087,138.97,138.94,5.74380701]
[1745060259563,4.94617087,138.96,138.94,5.74380701]
[1745060259767,11.0862,138.98,138.94,5.74380701]
[1745060259965,4.94623146,138.97,138.94,5.74380701]
[1745060260171,1.9774,138.98,138.96,5.74380701]
[1745060260468,4.94624633,138.97,138.96,5.74380701]
[1745060260766,4.94624633,138.97,138.96,5.79666646]
[1745060261773,4.94544123,138.97,138.96,5.79666646]